Cogmind - Beta 13 @@@ ROGUE MODE // 2024.04.05 @ 21:09:31 Player: Cherman0 Result: Self-destructed Performance ------------- Evolutions (1) 500 Regions Visited (3) 600 Robots Destroyed (41) 205 Value Destroyed (787) 787 Prototype IDs (4) 80 Alien Tech Used (0) 0 Bonus (0) 0 TOTAL SCORE: 2172 Bonus ------- None Cogmind --------- Core Integrity 147/400 Matter 230/300 Energy 150/150 System Corruption 0% Temperature Cool (64) Movement Walking (260) Ox2 Location -9/Materials Parts ------- > --- POWER (1) -------- Light Angular Momentum Engine > --- PROPULSION (2) --- Carbon-fiber Leg > --- UTILITY (4) ------ Large Storage Unit Hacking Suite > --- WEAPON (2) ------- Beamcaster Axe > --- INVENTORY (15) --- Light Ion Engine Cooling System High-capacity Storage Unit Huge Storage Unit Compact Matter Pod (150) Compact Matter Pod (150) Weight Redist. System Improved Terrain Scan Processor Transport Network Coupler Beam Rifle Beam Rifle Heavy Assault Rifle Rocket Launcher Mini Grenade Launcher Datajack Peak State ------------ > --- POWER ------------ Light Angular Momentum Engine > --- PROPULSION ------- Carbon-fiber Leg > --- UTILITY ---------- Large Storage Unit Hacking Suite > --- WEAPON ----------- Beamcaster Axe > --- INVENTORY -------- Light Ion Engine Cooling System High-capacity Storage Unit Huge Storage Unit Compact Matter Pod Compact Matter Pod Weight Redist. System Improved Terrain Scan Processor Transport Network Coupler Beam Rifle Beam Rifle Heavy Assault Rifle Rocket Launcher Mini Grenade Launcher Datajack [Rating: 22] Favorites ----------- Power Ion Engine Engine Ion Engine Propulsion Improved Treads Treads Improved Treads Leg Aluminum Leg Wheel Wheel Utility Sensor Array Device Sensor Array Storage Large Storage Unit Processor Targeting Computer Hackware Hacking Suite Protection Improved Light Armor Plating Weapon Beam Rifle Energy Gun Beam Rifle Energy Cannon Beam Cannon Ballistic Gun Assault Rifle Launcher Mini Grenade Launcher Slashing Weapon Axe Build | -11 -10 -10 -9 ------- Run | Yrd Mat Min Mat Slots Evolved 2 | . . . 2 Power . | . . . . Propulsion . | . . . . Utility 2 | . . . 2 Weapon . | . . . . Parts Attached 52 | 9 16 4 23 Power 7 | 1 1 1 4 Engine 7 | 1 1 1 4 Core . | . . . . Reactor . | . . . . Propulsion 16 | 4 4 2 6 Treads 8 | 2 4 . 2 Leg 3 | 2 . . 1 Wheel 5 | . . 2 3 Hover . | . . . . Flight . | . . . . Utility 12 | 2 5 1 4 Device 4 | 1 1 1 1 Storage 5 | 1 4 . . Processor 1 | . . . 1 Hackware 1 | . . . 1 Protection 1 | . . . 1 Artifact . | . . . . Weapon 17 | 2 6 . 9 Energy Gun 7 | 1 2 . 4 Energy Cannon 1 | . 1 . . Ballistic Gun 5 | 1 2 . 2 Ballistic Cannon . | . . . . Launcher 1 | . 1 . . Special Weapon . | . . . . Impact Weapon . | . . . . Slashing Weapon 3 | . . . 3 Piercing Weapon . | . . . . Special Melee Weapon . | . . . . Unidentified Prototypes . | . . . . Parts Lost 10 | . . 2 8 Power 2 | . . . 2 Propulsion 4 | . . 2 2 Utility 4 | . . . 4 Weapon . | . . . . Highest Loss Streak 4 | . . 1 4 To Critical Strikes . | . . . . Average Slot Usage (%) 94 | . 99 89 86 Engine 13 | . 13 14 9 Treads 17 | . 28 8 . Wheel 5 | . . 9 16 Device 13 | . 14 14 11 Storage 13 | . 14 14 11 Protection 1 | . . . 8 Energy Gun 16 | . 9 28 8 Ballistic Gun 8 | . 16 . 5 Slashing Weapon 1 | . . . 8 Naked Turns . | . . . . Heaviest Build 37 | 14 32 32 37 Greatest Support 46 | 40 46 46 20 Greatest Overweight (x) 12 | 1 . 10 12 Average Overweight (x) . | . . 1 1 Largest Inventory Capacity 20 | 8 20 15 15 Average Capacity 12 | 7 10 15 15 Most Carried 15 | 4 10 15 15 Average Carried 10 | 2 8 13 14 Final Capacity 15 | 8 15 15 15 Final Carried 15 | 3 10 15 15 Class Distribution -------------------- 96% | Mutant 3% | Scavenger-Mutant Dominant Class ---------------- Mutant | -10/Materials Mutant | -10/Mines Mutant | -9/Materials Resources | -11 -10 -10 -9 ----------- Run | Yrd Mat Min Mat Matter Collected 1478 | 182 440 656 200 Remotely . | . . . . Salvage Created 1082 | 12 494 272 304 Parts 69 | 2 34 16 17 Haulers Intercepted 1 | . 1 . . Recyclers Shooed 5 | . 3 . 2 Parts Field Recycled . | . . . . Retrieved Matter . | . . . . Parts Self-Destructed . | . . . . Prevented . | . . . . Kills | -11 -10 -10 -9 ------- Run | Yrd Mat Min Mat Combat Hostiles Destroyed 27 | . 11 8 8 Melee 5 | . . 1 4 Guns 20 | . 10 6 4 AOE 1 | . 1 . . Classes Destroyed 10 | 1 6 1 2 Worker 3 | . 2 . 1 Builder 2 | . . 1 1 Tunneler 2 | 1 . 1 . Hauler 1 | . 1 . . Recycler 2 | . 1 1 . Operator 1 | . . . 1 Watcher 3 | . 3 . . Swarmer 14 | . 6 6 2 Grunt 12 | . 5 2 5 Sentry 1 | . . . 1 Best Kill Streak 6 | 1 6 3 3 Combat Bots Only 3 | . 3 3 2 Max Kills in Single Turn 4 | 1 4 1 2 Gunslinging . | . . . . Exploded 1 | . 1 . . Melee 1 | . . 1 1 Uniques/NPCs Destroyed . | . . . . Combat | -11 -10 -10 -9 -------- Run | Yrd Mat Min Mat Hostile Shots Fired 200 | . 59 39 102 Missed 51 | . 15 9 27 Damage Taken 1909 | . 666 305 938 Core 395 | . 95 47 253 Absorbed by Shields 91 | . . . 91 Regen/Repaired (Parts) 35 | . 35 . . Core Remaining (%) 71 | 100 . 43 . Volleys Fired 124 | 1 55 27 41 Largest 2 | 2 2 2 2 Hottest 112 | 60 112 112 112 Shots Fired 221 | 2 110 54 55 Gun 217 | 2 106 54 55 Cannon 2 | . 2 . . Launcher 2 | . 2 . . Special . | . . . . Kinetic 123 | 1 94 . 28 Thermal 96 | 1 14 54 27 Explosive 2 | . 2 . . Electromagnetic . | . . . . Robot Hit Streak 8 | 1 8 7 8 Robot Miss Streak 5 | . 5 2 3 Penetration Max . | . . . . Secondary Targets 3 | . 1 2 . Max Gunslinging Chain 1 | . 1 1 . Shots Hit Robots 127 | 1 56 29 41 Core Hits 56 | 1 24 13 18 Critical Kills 1 | . 1 . . Critical Parts Destroyed . | . . . . Critical Strikes 10 | . 2 7 1 Burn 8 | . 1 7 . Destroy 1 | . 1 . . Sever 1 | . . . 1 Melee Attacks 7 | . . . 7 Impact . | . . . . Slashing 7 | . . . 7 Piercing . | . . . . Sneak Attacks . | . . . . Combat Hostiles . | . . . . Follow-up Attacks . | . . . . Damage Inflicted 2608 | 12 1062 436 1098 Guns 1691 | 12 720 427 532 Cannons . | . . . . Explosions 670 | . 342 . 328 Melee 238 | . . . 238 Ramming 9 | . . 9 . Kinetic 962 | . 676 . 286 Thermal 1057 | 12 44 427 574 Explosive 342 | . 342 . . Electromagnetic . | . . . . Impact . | . . . . Slashing 238 | . . . 238 Piercing . | . . . . Highest Corruption 2 | . 1 2 . Average Corruption 1 | . 1 1 . Corruption Purged . | . . . . Corruption Blocked . | . . . . Effects 6 | . . 6 . Message Errors 2 | . . 2 . Matter Fused 1 | . . 1 . Heat Flow Errors 1 | . . 1 . Data Loss (minor) 2 | . . 2 . Overload Shots . | . . . . Overflow Damage 38 | . . . 38 Projectiles . | . . . . Explosions 38 | . . . 38 Melee . | . . . . Knockbacks . | . . . . Impact . | . . . . Kinetic . | . . . . Secondary . | . . . . Self-Inflicted Damage 270 | . 103 2 165 Shots 4 | . 2 . 2 Rammed 2 | . . 2 . Targets Rammed 3 | . . 3 . Kicked . | . . . . Crushed 1 | . . 1 . Highest Temperature 546 | . 153 546 412 Average Temperature 123 | . 42 136 144 Received Heat Transfer 657 | . 204 117 336 Effects 4 | . . 3 1 Shutdowns 1 | . . 1 . Energy Bleed 1 | . . . 1 Matter Decay 2 | . . 2 . Siege Activations . | . . . . Robots Corrupted . | . . . . Combat Hostiles . | . . . . Parts Fried . | . . . . Impact Corruptions . | . . . . Robots Melted 1 | . . 1 . Combat Hostiles 1 | . . 1 . Parts Melted 3 | . 1 2 . Heat Transferred 2630 | 25 185 1591 829 Parts Sabotaged . | . . . . Parts Stolen . | . . . . Parts Stripped . | . . . . Power Chain Reactions . | . . . . Alert | -11 -10 -10 -9 ------- Run | Yrd Mat Min Mat Peak Influence 318 | 5 254 149 318 Initial 39 | . 3 39 . Average 82 | . 114 44 117 Maximum Alert Level 1 | . 1 . 1 Low Security (%) 90 | 100 82 100 93 Level 1 9 | . 17 . 6 Level 2 . | . . . . Level 3 . | . . . . Level 4 . | . . . . Level 5 . | . . . . High Security . | . . . . Max Security . | . . . . Squads Dispatched 6 | . 2 1 3 Investigation 4 | . 2 1 1 Extermination . | . . . . Reinforcement 2 | . . . 2 Assault . | . . . . Garrison . | . . . . Intercept . | . . . . Searches Triggered . | . . . . Construction Impeded . | . . . . Haulers Reinforced . | . . . . Active Scanning Responses . | . . . . Cargo Convoy Interrupts . | . . . . Stealth | -11 -10 -10 -9 --------- Run | Yrd Mat Min Mat Distress Signals 2 | . . . 2 Communications Jammed . | . . . . Distress Signals . | . . . . Times Spotted 50 | . 20 8 22 Peak Tracking Total 6 | . 3 3 6 Tactical Retreats 5 | . . . 5 Traps | -11 -10 -10 -9 ------- Run | Yrd Mat Min Mat Traps Triggered 5 | . 5 . . Indirectly . | . . . . Trap Hack Attempts . | . . . . Triggered . | . . . . Disarmed . | . . . . Reprogrammed . | . . . . Reused . | . . . . Traps Extracted . | . . . . Installed . | . . . . Triggered . | . . . . Machines | -11 -10 -10 -9 ---------- Run | Yrd Mat Min Mat Machines Disabled 5 | . 2 . 3 Max in Single Turn 3 | . 2 . 3 Machines Repaired . | . . . . Machines Dismantled . | . . . . Machines Sabotaged . | . . . . Overloaded Fab Kills . | . . . . Hacking | -11 -10 -10 -9 --------- Run | Yrd Mat Min Mat Machines Accessed 12 | . 8 1 3 Terminals 8 | . 6 . 2 Fabricators . | . . . . Repair Stations 1 | . 1 . . Recycling Units 1 | . 1 . . Scanalyzers 1 | . . . 1 Garrison Access . | . . . . Total Hacks 30 | . 20 1 9 Successful 21 | . 13 1 7 Failed 9 | . 7 . 2 Catastrophic 2 | . 2 . . Database Lockouts . | . . . . Manual . | . . . . Terminals 20 | . 15 . 5 Fabricators . | . . . . Repair Stations 2 | . 2 . . Recycling Units 3 | . 3 . . Scanalyzers 4 | . . . 4 Garrison Access . | . . . . Terminal Hacks 13 | . 9 1 3 Robot Analysis 1 | . 1 . . Prototype ID Bank 3 | . 2 . 1 Open Door 1 | . . 1 . Branch Access Points 1 | . . . 1 Emergency Access Points 1 | . 1 . . Alert Level 1 | . 1 . . Transport Status 1 | . 1 . . Hauler Manifests 1 | . 1 . . Registered Components 1 | . 1 . . Registered Prototypes 1 | . . . 1 Zone Layout 1 | . 1 . . Fabricator Hacks . | . . . . Repair Station Hacks 2 | . 2 . . Scan Component 1 | . 1 . . Repair 1 | . 1 . . Recycling Unit Hacks 2 | . 2 . . Process 1 | . 1 . . Retrieve Components 1 | . 1 . . Scanalyzer 4 | . . . 4 Insert Component 2 | . . . 2 Analyze 2 | . . . 2 Garrison Access Hacks . | . . . . Unauthorized Hacks . | . . . . Terminals . | . . . . Fabricators . | . . . . Repair Stations . | . . . . Recycling Units . | . . . . Scanalyzers . | . . . . Garrison Access . | . . . . Data Cores Recovered . | . . . . Used . | . . . . Hacking Detections 11 | . 8 . 3 Full Trace Events 1 | . . . 1 Feedback Events . | . . . . Feedback Blocked . | . . . . Robot Schematics Acquired . | . . . . Robots Built . | . . . . Authchips . | . . . . Time . | . . . . Total Robot Build Rating . | . . . . Part Schematics Acquired 1 | . . . 1 Parts Built . | . . . . Authchips . | . . . . Time . | . . . . Total Part Build Rating . | . . . . Parts Repaired 1 | . 1 . . Time 26 | . 26 . . Parts Recycled . | . . . . Recycled Matter 104 | . 104 . . Retrieved Matter . | . . . . Retrieved Components 10 | . 10 . . Parts Scanalyzed 2 | . . . 2 Part Schematics Acquired 1 | . . . 1 Parts Damaged . | . . . . Bothacking | -11 -10 -10 -9 ------------ Run | Yrd Mat Min Mat Used RIF Installer . | . . . . Robots Hacked . | . . . . Non-combat . | . . . . Combat . | . . . . Robot Hacks Applied . | . . . . Relay Couplers Released . | . . . . Fabnet Peak Effective % . | . . . . Robots Rewired . | . . . . Allies Hacked . | . . . . Hacks Repelled . | . . . . Allies | -11 -10 -10 -9 -------- Run | Yrd Mat Min Mat Total Allies . | . . . . Largest Group . | . . . . Highest-Rated Group . | . . . . Highest-Rated Ally . | . . . . Total Orders . | . . . . Ally Attacks . | . . . . Total Damage . | . . . . Kills . | . . . . Allies Corrupted . | . . . . Allies Melted . | . . . . Intel | -11 -10 -10 -9 ------- Run | Yrd Mat Min Mat Robot Analysis Total 1 | . 1 . . Derelict Logs Recovered 1 | . . 1 . Drone Launches . | . . . . Drone Recoveries . | . . . . Exploration | -11 -10 -10 -9 ------------- Run | Yrd Mat Min Mat Turns Passed 3874 | 359 1792 1238 485 Spaces Moved 2057 | 155 961 704 237 Core 61 | 11 . 33 17 Treads 1325 | 124 961 239 1 Legs 21 | 20 . . 1 Wheels 650 | . . 432 218 Hover . | . . . . Flight . | . . . . Fastest Speed 50 | 50 160 95 95 Average Speed 154 | 148 160 158 126 Slowest Speed 650 | 160 160 550 650 Overloaded Moves . | . . . . Propulsion Burnouts . | . . . . Robots Hopped . | . . . . Cave-ins Triggered . | . . . . Exploration Rate (%) 51 | 10 97 78 20 Regions Visited 3 Branch Regions 1 Pre-discovered Areas . | . . . . Known Exits Taken . | . . . . Unknown Exits Taken 3 | 1 1 1 . Scrap Searched 1 | . . 1 . Spaces Dug 20 | . 20 . . Terrain Destroyed 101 | . 45 . 56 Melee . | . . . . Projectile . | . . . . AOE 101 | . 45 . 56 Terrain Rammed . | . . . . Walls Destroyed . | . . . . Machines Disabled . | . . . . Actions | -11 -10 -10 -9 --------- Run | Yrd Mat Min Mat Total 2511 | 279 1110 770 352 Wait 200 | 110 41 21 28 Move 2054 | 154 960 703 237 Hop . | . . . . Pick Up 35 | 3 18 8 6 Fast Attach 20 | 7 4 1 8 Attach 8 | 2 . 1 5 Detach 4 | 2 . . 2 Swap 24 | . 12 2 10 Drop 32 | . 20 4 8 Fire 124 | 1 55 27 41 Melee 7 | . . . 7 Ram 1 | . . 1 . Kick . | . . . . Crush 2 | . . 2 . Escape Stasis . | . . . . Rewire . | . . . . Trap . | . . . . Miscellaneous . | . . . . Route ------- -11/Scrapyard -10/Materials (discovered 5 exits: *Mat x3 / *Min x2) -10/Mines -9/Materials (discovered 1 exit: *Min) History --------- Turn | Location | Event 59 | -11/Scrapyard | Discovered new exit (range 16) 360 | -11/Scrapyard | Entered Materials 361 | -10/Materials | Build established: Mutant 1336 | -10/Materials | Discovered new exit (range 11) 1358 | -10/Materials | Discovered new exit (range 17) 1521 | -10/Materials | Discovered new exit (range 6) 1727 | -10/Materials | Discovered new exit (range 9) 1889 | -10/Materials | Repaired Ion Engine 1963 | -10/Materials | Discovered new exit (range 10) 2152 | -10/Materials | Entered Mines 2159 | -10/Mines | Received a Rocket Launcher from a helpful Derelict 2176 | -10/Mines | Met a Derelict bent on vengeance 2373 | -10/Mines | Learned Materials terminal intel 2501 | -10/Mines | Discovered new exit (range 7) 2695 | -10/Mines | Core integrity fell below 50% 3241 | -10/Mines | Met a Derelict shopkeep closing up shop 3390 | -10/Mines | Entered Materials 3390 | -9/Materials | Evolved 2 slots: Utility x2 3391 | -9/Materials | Loaded intel: 12 terminal locations 3408 | -9/Materials | Identified exit to Mines 3783 | -9/Materials | Core integrity fell below 50% 3824 | -9/Materials | Lost 4 parts (1p1n2u) 3875 | -9/Materials | Self-destructed Last Messages --------------- 03821_ U-05 Engineer lays Concrete. 03823_ K-01 Serf collects debris. 03823_ U-05 Engineer builds a Wall. 03824_ U-05 Engineer lays Concrete. 03825_ U-05 Engineer builds a Wall. 03825_ U-05 Engineer lays Concrete. 03826_ K-01 Serf collects debris. 03827_ U-05 Engineer builds a Wall. 03828_ U-05 Engineer lays Concrete. 03829_ U-05 Engineer builds a Wall. 03829_ K-01 Serf collects debris. 03829_ U-05 Engineer builds a Wall. 03833_ K-01 Serf collects debris. 03834_ U-05 Engineer lays Concrete. 03836_ U-05 Engineer builds a Wall. 03839_ Acquired 6 matter. 03853_ U-05 Engineer builds a Wall. 03857_ Acquired Lgt. Angular Momentum Engine. 03865_ Acquired Carbon-fiber Leg. 03870_ Acquired Beamcaster. Map ----- +----------------------------------------------------+ | | | ?????????????????????????????????????????????????? | | ?????????????????????????????????????????????????? | | ?????????????????????????????????????????????????? | | ?????????????????????????????????????????????????? | | ?????????????????????????????????????????????????? | | ?????????????????????????????????????????????????? | | ?????????????????##??????????????????????????##### | | ???????????????### ######????????????????????# # | | ???????????????# [ %[ #????????????????????# # | | ???????????????# !!"" #????????????????????# # | | ???????????????#![ ""S ###################### + | | ????"!?????????#![ "" # [ = # | | ??#"" ????????#[ + % # | | ??# ????????# """ # # | | ??# >????????# """ !## $################# # | | ??? ????????# """ ## %#???###########?# # | | ??? ????????# ## #???# ?# T | | ???? ???????########### #???# """"""" # # | | ????# ???????????# ##% #???# """"""" # # | | ????# ???????????# "" ## #???# """"""" + # | | ????# ???????????# T" ## #???# """"""" # # | | ????# ???????????# "" ## #??## """"""" # # | | ???## ##???####### ## ####" ?# # | | ???# ##### ##+#### # ############### # | | ???# @% ### / | | ???+ % = ! * + """# | | ???# [ !!%k w [% ###% R"# "" | | ???# =##### ######## ## #= % ""# "" | | ???## ##???## ##??????# # # # "" | | ????# ??????# #???????#+# # !* # ? | | ????# ??????+ + ?????? ## "#######+###### ? | | ????# ??????# # ????? ## # #"##?? ? | | ????# ??""??# #? ?? ######"""## ? | | ???? ??"T??# #?? ? ! ???[%%= | | ???# ???""??# #???+#####??######### | | ???+ ???????# #???????????????????? #####/#? | | ???# ???????# #???????????"""??????? #??????? | | ???# ???????# #???????????"T"??????? #?"""""? | | ???## ??????? ???????????"?"???????? #?""T""? | | ????# ???????? ?????????????????????? #??????? | | ?????????????? ???????????????????????+??????? | | ?????????????? ?????????????????????????????? | | ?????????????# #?????????????????????????????? | | ??????????????# ##?????????????????????????????? | | ??????????????? ???????????????????????????????? | | ?????????????????????????????????????????????????? | | ?????????????????????????????????????????????????? | | ?????????????????????????????????????????????????? | | ?????????????????????????????????????????????????? | +----------------------------------------------------+ Best States ------------- Heat Dissipation 28 Energy Generation 18 Energy Capacity 265 Matter Stores 300 Matter Capacity 300 Sight Range 16 Robot Scan Range 15 Terrain Scan Density 10 Armor Coverage 150 Evasion (%) 45 Targeting Accuracy 5 Recoil Reduction 2 Offensive Hacking 10 Item Schematics ----------------- Imp. Ion Engine | -9/Materials | Scanalyzed Robot Schematics ------------------ None Fabricated ------------ Nothing Alien Tech Used ----------------- None Achievements -------------- Hey, That's Mine! It's Just You Challenges ------------ None Game ------ Seed PhaseActiveBuckler Manual? 0 Play Time 01:03:24 Cumulative 4.1 hours Start 2024.04.05 @ 20:02:13 End 2024.04.05 @ 21:09:31 Sessions 1 Manual Loads 0 Difficulty Rogue Special Mode None Game No. 3 Rogue 3 Adventurer 0 Explorer 0 Win Type - Total 0 Types 0/0/0/0/0/0/0/0/0 Lore% 1 Gallery% 6 Achievement% 5 Wizard Run 0 Options --------- Layout 0 ASCII 0 Keyboard 0 Movement Numpad Keybinds 0 Fullscreen 1 Font 18/SmallcapsGlow Map View 76x50 Zoom Use 0% Tactical HUD 1 Map Filters NONE Filters NONE Steam 1 RUN: 8d3f2a84-4d3e-41c5-92f7-a1b94c936800